bitfinex-derivatives/quotes_BNBF0:USTF0_20250221
["timestamp","ask_amount","ask_price","bid_price","bid_amount"]
[1740178923632,1.287,645.34,644.22,0.31045295]
[1740178923830,1.287,645.34,644.23,0.28522942]
[1740178924030,1.287,645.34,644.24,0.31044331]
[1740178924227,1.287,645.34,644.25,0.28522942]
[1740178926432,1.287,645.34,644.26,0.28512999]
[1740178926629,1.287,645.34,644.25,0.28512999]
[1740178926828,1.287,645.34,644.26,0.28512999]
[1740178927026,1.287,645.34,644.27,0.28512999]
[1740178927332,1.287,645.34,644.28,0.28512999]
[1740178927527,1.287,645.34,644.24,0.31044331]
[1740178927726,1.287,645.34,644.25,0.28515238]
[1740178930029,0.891,645.33,644.25,0.28515238]
[1740178933236,0.28399085,645.32,644.25,0.28515238]
[1740178933736,0.28399101,645.31,644.26,0.2851542]
[1740178933935,0.891,645.33,644.27,0.2851542]
[1740178934138,0.28399086,645.32,644.25,0.2851542]
[1740178934336,0.28399086,645.32,644.26,0.2851542]
[1740178934536,0.28399086,645.32,644.27,0.2851542]
[1740178934730,0.28399086,645.32,644.25,0.2851542]
[1740178934934,0.891,645.33,644.26,0.28515689]
[1740178935131,0.28399391,645.32,644.24,0.31044331]
[1740178935337,0.891,645.33,644.25,0.28515664]
[1740178938237,0.28399742,645.32,644.25,0.28515664]
[1740178938638,0.891,645.33,644.25,0.28515664]
[1740178940236,0.28398642,645.32,644.25,0.28515664]
[1740178942537,0.28398642,645.32,644.24,0.31044331]
[1740178942740,0.891,645.33,644.26,0.31043367]
[1740178944136,0.2839989,645.32,644.26,0.31043367]
[1740178944645,0.28399884,645.31,644.27,0.28516204]
[1740178944844,0.28399884,645.32,644.27,0.28516204]
[1740178945038,0.28399884,645.31,644.27,0.28516204]
[1740178945343,0.28399884,645.3,644.27,0.28516204]
[1740178945544,0.891,645.33,644.27,0.28516204]
[1740178945545,0.28399884,645.29,644.27,0.28516204]
[1740178945743,0.28399884,645.32,644.27,0.28516204]
[1740178945943,0.891,645.33,644.26,0.31043367]
[1740178946139,0.28399736,645.32,644.27,0.28516056]
[1740178947042,0.28399736,645.32,644.26,0.31043367]
[1740178947945,0.891,645.33,644.26,0.31043367]
[1740178950348,0.891,645.33,644.27,0.28513416]
[1740178950645,0.891,645.33,644.28,0.31042403]
[1740178951541,0.891,645.33,644.29,0.28513055]
[1740178951746,0.891,645.33,644.3,0.3104144]
[1740178952545,0.891,645.33,644.31,0.2851305]
[1740178953445,0.891,645.33,644.3,0.3104144]
[1740178953638,0.28400353,645.32,644.31,0.28516744]
[1740178954041,0.28400353,645.32,644.3,0.3104144]
[1740178954241,0.28400353,645.31,644.3,0.3104144]
[1740178954446,0.28400353,645.36,644.3,0.3104144]
[1740178957843,0.28405161,645.35,644.3,0.3104144]
[1740178958044,0.28405161,645.34,644.3,0.3104144]
[1740178958349,0.28405161,645.33,644.3,0.3104144]
[1740178958548,0.28405161,645.32,644.3,0.3104144]
[1740178958748,0.28405161,645.31,644.3,0.3104144]
[1740178958950,0.28405161,645.36,644.3,0.3104144]
[1740178959252,0.28405161,645.35,644.3,0.3104144]
[1740178959445,0.30989974,645.37,644.3,0.3104144]
[1740178959646,0.28406292,645.36,644.3,0.3104144]
[1740178960045,0.88546716,645.35,644.3,0.3104144]
[1740178960245,0.28406292,645.34,644.3,0.3104144]
[1740178960453,1.91831862,645.33,644.3,1.137]
[1740178960653,2.51234942,645.32,644.3,1.137]
[1740178960845,1.14390462,646.0,644.3,1.137]
[1740178960846,2.51235423,645.31,644.3,1.137]
[1740178961150,2.51235404,645.3,644.3,1.137]
[1740178961350,1.4231182,645.29,644.3,1.137]
[1740178961547,1.4231182,645.28,644.3,1.137]
[1740178961746,0.59405252,645.27,644.3,1.137]
[1740178961946,0.59405732,645.26,644.3,1.137]
[1740178962153,0.59406213,645.25,644.3,1.137]
[1740178962351,0.28410475,645.24,644.3,1.137]
[1740178962750,0.28410153,645.23,644.3,1.137]
[1740178962947,0.28410153,645.22,644.3,1.137]
[1740178963149,0.28410153,645.21,644.3,1.137]
[1740178963349,0.28410153,645.2,644.3,1.137]
[1740178963554,0.28410153,645.19,644.3,1.137]
[1740178963754,0.28410153,645.18,644.3,1.137]
[1740178963955,0.28410153,645.24,644.3,1.137]
[1740178964149,0.30995738,645.25,644.3,1.137]
[1740178964150,0.28410153,645.23,644.3,1.137]
[1740178964356,0.30995738,645.25,644.3,1.137]
[1740178964556,0.28410046,645.24,644.3,1.137]
[1740178965548,1.44849644,645.23,644.3,1.137]
[1740178965856,2.20182323,645.22,644.3,1.137]
[1740178966056,1.19506549,645.23,644.3,1.137]
[1740178966057,2.20189477,645.21,644.3,1.137]
[1740178966256,2.20189477,645.2,644.3,1.137]
[1740178966451,3.08699328,645.19,644.3,1.137]
[1740178966752,1.42278453,645.18,644.3,1.137]
[1740178967056,0.30996698,645.23,644.3,1.137]
[1740178967057,1.16927051,645.17,644.3,1.137]
[1740178967249,0.284172,645.16,644.3,1.137]
[1740178967956,0.284172,645.15,644.3,1.137]
[1740178968158,0.284172,645.22,644.3,1.137]
[1740178968359,0.30996698,645.23,644.3,1.137]
[1740178968360,2.61666988,645.21,644.3,1.137]
[1740178968560,0.5941534,645.2,644.3,1.137]
[1740178968755,1.47878765,645.19,644.3,1.137]
[1740178968956,0.284172,645.18,644.3,1.137]
[1740178969153,0.88462945,645.17,644.3,1.137]
[1740178969358,0.284172,645.16,644.3,1.137]
[1740178969759,0.284172,645.15,644.3,1.137]
[1740178969960,0.284172,645.14,644.3,1.137]
[1740178970157,0.284172,645.17,644.3,1.137]
[1740178970360,0.284172,645.16,644.3,1.137]
[1740178970560,0.284172,645.15,644.3,1.137]
[1740178970761,0.284172,645.14,644.3,1.137]
[1740178970958,0.284172,645.13,644.3,1.137]
[1740178971161,0.284172,645.12,644.3,1.137]
[1740178971458,0.284172,645.11,644.3,1.137]
[1740178971664,0.284172,645.1,644.3,1.137]
[1740178971862,0.284172,645.09,644.3,1.137]
[1740178972062,0.284172,645.17,644.3,1.137]
[1740178972258,0.284172,645.16,644.3,1.137]
[1740178972463,0.30999101,645.18,644.3,1.137]
[1740178972662,0.2841679,645.17,644.3,1.137]
[1740178977362,0.28414958,645.16,644.3,1.137]
[1740178977561,0.28414958,645.15,644.3,1.137]
[1740178977767,0.28414958,645.17,644.3,1.137]
[1740178977964,0.28414958,645.16,644.3,1.137]
[1740178978160,0.30999101,645.18,644.3,1.137]
[1740178978161,0.28414958,645.17,644.3,1.137]
[1740178978467,0.28414958,645.16,644.3,1.137]
[1740178978667,0.28414958,645.15,644.3,1.137]
[1740178979066,0.28414958,645.14,644.3,1.137]
[1740178979264,0.28414958,645.17,644.3,1.137]
[1740178979464,0.28414958,645.16,644.3,1.137]
[1740178979665,0.28414958,645.17,644.3,1.137]
[1740178979865,0.28414958,645.16,644.3,1.137]
[1740178980063,0.28414958,645.17,644.3,1.137]
[1740178980368,0.28414958,645.16,644.3,1.137]
[1740178980562,0.28414958,645.17,644.3,1.137]
[1740178980867,0.28414958,645.16,644.3,1.137]
[1740178981068,0.28414958,645.17,644.3,1.137]
[1740178981268,0.28414958,645.16,644.3,1.137]
[1740178981463,0.28414958,645.17,644.3,1.137]
[1740178981768,0.28414958,645.16,644.3,1.137]
[1740178981969,0.28414958,645.15,644.3,1.137]
[1740178982169,0.30999101,645.18,644.3,1.137]
[1740178982170,0.28414958,645.14,644.3,1.137]
[1740178982470,0.28414958,645.13,644.3,1.137]
[1740178982764,0.28414958,645.12,644.3,1.137]
[1740178982968,0.28414958,645.17,644.3,1.137]
[1740178983171,0.28414958,645.16,644.3,1.137]
[1740178983364,0.28414958,645.17,644.3,1.137]
[1740178983566,0.28414958,645.16,644.3,1.137]
[1740178983870,0.28414958,645.15,644.3,1.137]
[1740178984069,0.28414958,645.17,644.3,1.137]
[1740178984266,0.28414958,645.16,644.3,1.137]
[1740178984468,0.28414958,645.17,644.3,1.137]
[1740178984669,0.28414958,645.16,644.3,1.137]
[1740178984870,0.28414958,645.17,644.3,1.137]
[1740178985067,0.28415215,645.16,644.3,1.137]
[1740178985272,0.28415215,645.17,644.3,1.137]
[1740178985466,0.28415215,645.16,644.3,1.137]
[1740178985664,0.28415215,645.15,644.3,1.137]
[1740178985866,0.28415215,645.14,644.3,1.137]
[1740178986064,0.28415215,645.17,644.3,1.137]
[1740178991380,0.30999101,645.18,644.3,1.137]
[1740178991576,0.28415468,645.17,644.3,1.137]
[1740178992978,0.28415247,645.16,644.3,1.137]
[1740178993181,0.28415247,645.15,644.3,1.137]
[1740178993377,0.28415247,645.17,644.3,1.137]
[1740178996282,0.28415194,645.16,644.3,1.137]
[1740178996582,0.28415194,645.15,644.3,1.137]
[1740178996779,0.28415194,645.17,644.3,1.137]
[1740178996983,0.28415194,645.16,644.3,1.137]
[1740178997183,0.28415194,645.17,644.3,1.137]
[1740178997381,0.28415194,645.16,644.3,1.137]
[1740178997580,0.28415194,645.15,644.3,1.137]
[1740178997783,0.30999101,645.18,644.3,1.137]
[1740178997979,0.28415442,645.17,644.3,1.137]
[1740179004689,0.28415442,645.17,644.22,1.61960278]
[1740179005787,0.2841438,645.16,644.22,1.61960278]
[1740179005984,0.2841438,645.17,644.22,1.61960278]
[1740179006283,0.2841438,645.16,644.22,1.61960278]
[1740179006585,0.30999101,645.18,644.22,1.61960278]
[1740179006586,0.2841438,645.15,644.22,1.61960278]
[1740179006789,0.2841438,645.14,644.22,1.61960278]
[1740179006990,0.2841438,645.17,644.22,1.61960278]
[1740179007192,0.2841438,645.16,644.22,1.61960278]
[1740179007588,0.2841438,645.15,644.22,1.61960278]
[1740179007788,0.2841438,645.14,644.22,1.61960278]
[1740179007994,0.2841438,645.13,644.22,1.61960278]
[1740179008193,0.2841438,645.12,644.22,1.61960278]
[1740179008394,0.2841438,645.11,644.22,1.61960278]
[1740179008595,0.2841438,645.1,644.22,1.61960278]
[1740179008795,0.2841438,645.17,644.22,1.61960278]
[1740179008996,0.2841438,645.16,644.22,1.61960278]
[1740179009191,0.2841438,645.15,644.22,1.61960278]
[1740179009401,0.2841438,645.14,644.22,1.61960278]
[1740179009696,0.2841438,645.13,644.22,1.61960278]
[1740179009895,0.2841438,645.12,644.22,1.61960278]
[1740179010097,0.2841438,645.17,644.22,1.61960278]
[1740179010291,0.2841438,645.16,644.22,1.61960278]
[1740179010489,0.2841438,645.17,644.22,1.61960278]
[1740179010694,0.2841438,645.16,644.22,1.61960278]
[1740179010897,0.2841438,645.15,644.22,1.61960278]
[1740179011099,0.2841438,645.17,644.22,1.61960278]
[1740179011395,0.2841438,645.16,644.22,1.61960278]
[1740179011599,0.2841438,645.15,644.22,1.61960278]
[1740179011800,0.2841438,645.14,644.22,1.61960278]
[1740179011995,0.30999101,645.18,644.22,1.61960278]
[1740179011996,0.2841438,645.17,644.22,1.61960278]
[1740179012201,0.28414238,645.16,644.22,1.61960278]
[1740179012399,0.28414238,645.17,644.22,1.61960278]
[1740179012602,0.28414238,645.16,644.22,1.61960278]
[1740179012901,0.28414238,645.15,644.22,1.61960278]
[1740179013104,0.30999101,645.18,644.22,1.61960278]
[1740179013296,0.28414238,645.17,644.22,1.61960278]
[1740179015105,0.30999101,645.18,644.22,1.61960278]
[1740179015501,0.28407731,645.17,644.22,1.61960278]
[1740179016505,0.30999101,645.18,644.22,1.61960278]
[1740179016905,0.28407344,645.17,644.22,1.61960278]
[1740179017907,0.30999101,645.18,644.22,1.61960278]
[1740179024810,0.803,645.27,644.22,1.61960278]
[1740179025624,0.803,645.27,644.23,0.31044813]
[1740179031916,0.784,645.29,644.23,0.31044813]
[1740179034219,0.784,645.29,644.24,0.796]
[1740179034421,0.784,645.29,644.25,0.31043849]
[1740179035022,0.28402181,645.28,644.25,0.31043849]
[1740179035421,0.784,645.29,644.25,0.31043849]
[1740179036023,0.2840176,645.28,644.25,0.31043849]
[1740179036628,0.784,645.29,644.25,0.31043849]
[1740179036823,0.28402359,645.28,644.25,0.31043849]
[1740179039528,0.28402359,645.27,644.25,0.31043849]
[1740179039730,0.28402359,645.26,644.25,0.31043849]
[1740179039926,1.24443098,646.11,644.25,0.31043849]
[1740179040132,0.30955439,646.09,644.25,0.31043849]
[1740179040430,2.56445099,646.08,644.25,0.31043849]
[1740179040629,0.30956877,646.06,644.25,0.31043849]
[1740179040832,2.30418708,646.05,644.25,0.31043849]
[1740179041134,0.30958314,646.03,644.25,0.31043849]
[1740179041331,2.19828937,646.02,644.25,0.31043849]
[1740179041531,1.55396928,646.03,644.25,0.31043849]
[1740179041532,0.30959752,646.0,644.25,0.31043849]
[1740179041727,1.42054803,645.99,644.25,0.31043849]
[1740179041929,0.3096119,645.97,644.25,0.31043849]
[1740179042233,2.30413449,645.96,644.25,0.31043849]
[1740179042432,0.30962628,645.94,644.25,0.31043849]
[1740179042632,1.4204915,645.93,644.25,0.31043849]
[1740179042934,0.30964066,645.91,644.25,0.31043849]
[1740179043130,1.4204915,645.9,644.25,0.31043849]
[1740179043333,3.44252079,645.89,644.25,0.31043849]
[1740179043529,3.44252079,645.88,644.25,0.31043849]
[1740179043731,0.30966463,645.86,644.25,0.31043849]
[1740179043934,1.42041357,645.85,644.25,0.31043849]
[1740179044135,0.30967901,645.83,644.25,0.31043849]
[1740179044336,1.42041357,645.82,644.25,0.31043849]
[1740179044536,0.3096934,645.8,644.25,0.31043849]
[1740179044739,2.19806303,645.79,644.25,0.31043849]
[1740179044934,0.30970779,645.77,644.25,0.31043849]
[1740179045134,2.19806303,645.76,644.25,0.31043849]
[1740179045335,2.50778041,645.75,644.25,0.31043849]
[1740179045631,1.61892467,645.81,644.25,0.31043849]
[1740179045632,2.61377873,645.74,644.25,0.31043849]
[1740179045837,1.7301169,645.73,644.25,0.31043849]
[1740179046137,1.4773949,645.72,644.25,0.31043849]
[1740179046332,0.5937567,645.71,644.25,0.31043849]
[1740179046632,0.5937615,645.7,644.25,0.31043849]
[1740179046836,0.59377115,645.69,644.25,0.31043849]
[1740179047034,0.59377595,645.68,644.25,0.31043849]
[1740179047234,0.59378074,645.67,644.25,0.31043849]
[1740179047435,0.59378554,645.66,644.25,0.31043849]
[1740179047630,0.59379034,645.65,644.25,0.31043849]
[1740179047835,0.28402499,645.64,644.25,0.31043849]
[1740179048133,0.30977494,645.63,644.25,0.31043849]
[1740179048338,0.28406002,645.62,644.25,0.31043849]
[1740179048536,0.30978454,645.61,644.25,0.31043849]
[1740179048736,0.28406002,645.6,644.25,0.31043849]
[1740179049636,0.88383288,645.59,644.25,0.31043849]
[1740179050037,0.28408488,645.58,644.25,0.31043849]
[1740179050640,0.88383288,645.57,644.25,0.31043849]
[1740179050837,0.28408488,645.56,644.25,0.31043849]
[1740179051434,0.88383288,645.55,644.25,0.31043849]
[1740179051632,0.28408488,645.54,644.25,0.31043849]
[1740179051939,0.30982293,645.53,644.25,0.31043849]
[1740179052134,0.28408488,645.52,644.25,0.31043849]
[1740179052333,0.30983253,645.51,644.25,0.31043849]
[1740179052535,0.28408488,645.5,644.25,0.31043849]
[1740179052736,0.30984213,645.49,644.25,0.31043849]
[1740179052940,0.28408488,645.48,644.25,0.31043849]
[1740179053141,0.59397217,645.47,644.25,0.31043849]
[1740179053338,0.28412044,645.46,644.25,0.31043849]
[1740179053535,0.59397697,645.46,644.25,0.31043849]
[1740179053839,0.28412044,645.45,644.25,0.31043849]
[1740179054640,0.30986613,645.44,644.25,0.31043849]
[1740179054941,0.28412165,645.43,644.25,0.31043849]
[1740179055541,0.30987573,645.42,644.25,0.31043849]
[1740179055842,0.28412165,645.41,644.25,0.31043849]
[1740179056038,0.30988534,645.4,644.25,0.31043849]
[1740179056343,0.28412026,645.39,644.25,0.31043849]
[1740179056642,0.28412026,645.38,644.25,0.31043849]
[1740179056943,0.59402,645.37,644.25,0.31043849]
[1740179057137,0.5940248,645.36,644.25,0.31043849]
[1740179057343,4.12734773,647.73,644.25,0.31043849]
[1740179057344,0.59402961,645.35,644.25,0.31043849]
[1740179057543,0.59403441,645.34,644.25,0.31043849]
[1740179057839,0.59405228,645.33,644.25,0.31043849]
[1740179058039,0.59405708,645.32,644.25,0.31043849]
[1740179058238,0.59406189,645.31,644.25,0.31043849]
[1740179058444,0.59406669,645.3,644.25,0.31043849]
[1740179058643,0.28413333,645.29,644.25,0.31043849]
[1740179059241,0.30994297,645.28,644.25,0.31043849]
[1740179059545,0.28413333,645.27,644.25,0.31043849]
[1740179060339,0.28413333,645.27,644.26,1.136]
[1740179061345,0.30995257,645.26,644.26,1.136]
[1740179061545,0.28413333,645.25,644.26,1.136]
[1740179063645,0.30996218,645.24,644.26,1.136]
[1740179063945,0.28413333,645.23,644.26,1.136]
[1740179064245,0.30997179,645.22,644.26,1.136]
[1740179064544,0.28413333,645.21,644.26,1.136]
[1740179064740,0.3099814,645.2,644.26,1.136]
[1740179064941,0.28413333,645.19,644.26,1.136]
[1740179065142,0.30999101,645.18,644.26,1.136]
[1740179065343,0.28413333,645.17,644.26,1.136]
[1740179065642,0.31000062,645.16,644.26,1.136]
[1740179065839,0.28421169,645.15,644.26,1.136]
[1740179066445,0.31001023,645.14,644.26,1.136]
[1740179066645,0.28421169,645.13,644.26,1.136]
[1740179066946,0.31001984,645.12,644.26,1.136]
[1740179067140,0.28421169,645.11,644.26,1.136]
[1740179067346,0.59424703,645.1,644.26,1.136]
[1740179067542,0.59425183,645.09,644.26,1.136]
[1740179067746,0.59425664,645.08,644.26,1.136]
[1740179067941,0.59426145,645.07,644.26,1.136]
[1740179068146,0.59426625,645.06,644.26,1.136]
[1740179068347,0.59427106,645.05,644.26,1.136]
[1740179068547,0.28421758,645.04,644.26,1.136]
[1740179070544,0.28421395,645.03,644.26,1.136]
[1740179070848,0.28421395,645.02,644.26,1.136]
[1740179071049,0.28421395,645.01,644.26,1.136]
[1740179071249,0.28421395,645.04,644.26,1.136]
[1740179071445,0.28421395,645.03,644.26,1.136]
[1740179071650,0.28421395,645.04,644.26,1.136]
[1740179071846,0.28421395,645.03,644.26,1.136]
[1740179072046,0.31005348,645.05,644.26,1.136]
[1740179072250,0.28421485,645.04,644.26,1.136]
[1740179074252,0.28421485,645.04,643.35,1.40620362]
[1740179074452,0.28421485,645.04,643.37,0.31086311]
[1740179074647,0.28421485,645.04,643.38,0.28537661]
[1740179074850,0.28421485,645.04,643.4,0.31084861]
[1740179075151,0.28421485,645.04,643.41,0.28537661]
[1740179075353,0.28421485,645.04,643.43,0.31083412]
[1740179075653,0.31005348,645.05,643.44,0.28537661]
[1740179075850,1.14390462,645.67,643.46,0.31081963]
[1740179076050,0.30976535,645.65,643.47,0.28537661]
[1740179076246,0.28404458,645.64,643.47,0.28537661]
[1740179076947,0.28404458,645.64,643.48,0.28537661]
[1740179077251,0.28404458,645.64,643.49,0.28537661]
[1740179077447,0.28404458,645.64,643.47,0.28537661]
[1740179077650,0.28404458,645.64,643.48,0.28537661]
[1740179077850,0.30977494,645.63,643.58,0.31076167]
[1740179078045,0.28404458,645.62,643.59,0.28537661]
[1740179078252,0.30978454,645.61,643.69,0.31070857]
[1740179078454,0.28404458,645.6,643.7,0.28537661]
[1740179078747,0.28403831,645.59,643.72,0.31069409]
[1740179078947,0.30978454,645.61,643.72,0.31069409]
[1740179078948,0.30979894,645.58,643.73,0.28520154]
[1740179079147,0.28403831,645.57,643.75,0.31067961]
[1740179079460,0.30980853,645.56,643.76,0.28520154]
[1740179079655,0.28403831,645.55,643.78,0.31066513]
[1740179079956,0.30981813,645.54,643.79,0.28520154]
[1740179080156,0.30981813,645.54,643.81,0.31065065]
[1740179080357,0.28403915,645.53,643.82,0.28520238]
[1740179080556,0.30982773,645.52,643.84,0.31063618]
[1740179080758,0.28403915,645.51,643.85,0.28520238]
[1740179081057,0.30983733,645.5,643.87,0.3106217]
[1740179081256,0.28403915,645.49,643.88,0.28520238]
[1740179081455,0.30984693,645.48,643.9,0.31060723]
[1740179081651,0.28403915,645.47,643.91,0.28520238]
[1740179081856,0.30985653,645.46,643.93,0.31059276]
[1740179082061,0.28403915,645.45,643.94,0.28520238]
[1740179082261,1.55190048,645.45,643.95,0.31058311]
[1740179082560,0.28403915,645.44,643.96,0.28520238]
[1740179082761,0.28403915,645.44,643.97,0.31057347]
[1740179083060,0.28403915,645.44,643.98,0.28520238]
[1740179083254,0.28403915,645.44,643.99,0.31056382]
[1740179083458,0.2840363,645.43,644.0,0.28519953]
[1740179083760,0.2840363,645.42,644.01,0.31055418]
[1740179083961,0.2840363,645.44,644.02,0.28519953]
[1740179084155,0.2840363,645.43,644.03,0.31054453]
[1740179084359,0.2840363,645.42,644.04,0.28519953]
[1740179084560,0.2840363,645.44,644.05,0.31053489]
[1740179084763,0.2840363,645.43,644.06,0.28519953]
[1740179085056,0.2840363,645.42,644.07,0.31052525]
[1740179085263,0.2840363,645.41,644.08,0.28519953]
[1740179085460,0.2840363,645.4,644.09,0.31051561]
[1740179085660,1.26786133,645.45,644.09,0.31051561]
[1740179085661,0.2840363,645.39,644.1,0.28519953]
[1740179085960,0.2840363,645.38,644.11,0.31050596]
[1740179086160,0.2840363,645.37,644.12,0.28519953]
[1740179086358,0.2840363,645.36,644.13,0.31049632]
[1740179086557,0.2840363,645.44,644.14,0.28519953]
[1740179086759,0.2840363,645.43,644.15,0.31048668]
[1740179086959,0.2840363,645.42,644.16,0.28519953]
[1740179087161,0.2840363,645.44,644.17,0.31047704]
[1740179087362,0.2840363,645.43,644.18,0.28519953]
[1740179087562,0.2840363,645.42,644.19,0.3104674]
[1740179087863,0.2840363,645.41,644.19,0.3104674]
[1740179088067,0.2840363,645.44,644.19,0.3104674]
[1740179088267,0.2840363,645.4,644.19,0.3104674]
[1740179088568,0.2840363,645.39,644.19,0.3104674]
[1740179088766,0.2840363,645.44,644.19,0.3104674]
[1740179089869,0.28403015,645.43,644.19,0.3104674]
[1740179090062,0.28403015,645.44,644.19,0.3104674]
[1740179090261,0.28403015,645.43,644.19,0.3104674]
[1740179090465,0.28403015,645.44,644.19,0.3104674]
[1740179090661,0.28403015,645.43,644.19,0.3104674]
[1740179090865,0.28403015,645.42,644.19,0.3104674]
[1740179091067,0.28403015,645.41,644.19,0.3104674]
[1740179091365,0.28403015,645.4,644.19,0.3104674]
[1740179091570,0.28403015,645.39,644.2,1.077]
[1740179091762,0.28403015,645.38,644.2,1.077]
[1740179091964,0.28403015,645.37,644.21,0.31045776]
[1740179092170,0.28403015,645.44,644.21,0.31045776]
[1740179092369,0.28403015,645.43,644.21,0.31045776]
[1740179092569,0.28403015,645.44,644.21,0.31045776]
[1740179092766,0.28403015,645.43,644.21,0.31045776]
[1740179092968,0.28403015,645.44,644.21,0.31045776]
[1740179093267,0.28403015,645.43,644.21,0.31045776]
[1740179093469,0.28403015,645.44,644.21,0.31045776]
[1740179093772,0.28403015,645.43,644.21,0.31045776]
[1740179093966,0.28403015,645.42,644.21,0.31045776]
[1740179094170,0.28403015,645.41,644.21,0.31045776]
[1740179094364,0.28403015,645.44,644.21,0.31045776]
[1740179094567,0.28403015,645.43,644.21,0.31045776]
[1740179094770,0.28404555,645.42,644.21,0.31045776]
[1740179094968,0.28404555,645.41,644.21,0.31045776]
[1740179095168,0.28404555,645.44,644.21,0.31045776]
[1740179095365,0.28404555,645.43,644.21,0.31045776]
[1740179095564,0.28404555,645.42,644.21,0.31045776]
[1740179095871,0.28404555,645.41,644.21,0.31045776]
[1740179096063,0.28404555,645.4,644.21,0.31045776]
[1740179096467,1.16676762,645.39,644.2,1.077]
[1740179096672,1.4192627,645.38,644.2,1.077]
[1740179096872,1.26786133,645.45,644.2,1.077]
[1740179096873,1.16676762,645.37,644.2,1.077]
[1740179097069,0.28404555,645.36,644.2,1.077]
[1740179097272,0.88272207,645.35,644.2,1.077]
[1740179097474,0.28404555,645.34,644.2,1.077]
[1740179097775,0.88272207,645.35,644.2,1.077]
[1740179097979,0.2842075,645.34,644.2,1.077]
[1740179098178,0.88272207,645.33,644.2,1.077]
[1740179098477,0.2842075,645.32,644.2,1.077]
[1740179099274,0.2842075,645.44,644.2,1.077]
[1740179099476,0.2842075,645.43,644.2,1.077]
[1740179099676,0.30987573,645.42,644.2,1.077]
[1740179099978,0.2842075,645.41,644.2,1.077]
[1740179100177,0.30988534,645.4,644.2,1.077]
[1740179100377,0.2842075,645.39,644.2,1.077]
[1740179100578,0.30989494,645.38,644.2,1.077]
[1740179100877,0.2842075,645.37,644.2,1.077]
[1740179101076,0.30990454,645.36,644.2,1.077]
[1740179101274,0.2842075,645.35,644.2,1.077]
[1740179101476,0.30991415,645.34,644.2,1.077]
[1740179101676,0.2842075,645.33,644.2,1.077]
[1740179101875,0.30992856,645.31,644.2,1.077]
[1740179102178,1.0611663,645.3,644.2,1.077]
[1740179102377,0.30994297,645.28,644.2,1.077]
[1740179102678,2.30241753,645.27,644.2,1.077]
[1740179102879,0.30995738,645.25,644.2,1.077]
[1740179103085,3.07937633,645.24,644.2,1.077]
[1740179103280,0.30997179,645.22,644.2,1.077]
[1740179103582,3.07937633,645.21,644.2,1.077]
[1740179103774,0.3099862,645.19,644.2,1.077]
[1740179103981,0.2842075,645.18,644.2,1.077]
[1740179104180,0.31000062,645.16,644.2,1.077]
[1740179104381,0.2842075,645.15,644.2,1.077]
[1740179104677,1.44517709,645.14,644.2,1.077]
[1740179104882,0.31001984,645.12,644.2,1.077]
[1740179105076,2.19623912,645.11,644.2,1.077]
[1740179105275,0.31003425,645.09,644.2,1.077]
[1740179105479,1.41914023,645.08,644.2,1.077]
[1740179105678,0.59425137,645.07,644.2,1.077]
[1740179105880,2.50592927,645.06,644.2,1.077]
[1740179106075,2.19590104,645.05,644.2,1.077]
[1740179106283,1.19263311,645.06,644.2,1.077]
[1740179106284,2.19590104,645.04,644.2,1.077]
[1740179106483,2.19590104,645.03,644.2,1.077]
[1740179106780,3.07822973,645.02,644.2,1.077]
[1740179106983,1.41914101,645.01,644.2,1.077]
[1740179107184,1.41914101,645.0,644.2,1.077]
[1740179107380,0.2842075,644.99,644.2,1.077]
[1740179107578,0.2842075,644.98,644.2,1.077]
[1740179108578,0.2842075,645.05,644.2,1.077]
[1740179108781,1.90978899,645.04,644.2,1.077]
[1740179108979,0.2842075,645.03,644.2,1.077]
[1740179109179,0.3100679,645.02,644.2,1.077]
[1740179109379,0.2842075,645.01,644.2,1.077]
[1740179109783,0.88176804,645.0,644.2,1.077]
[1740179109984,0.31008232,644.99,644.2,1.077]
[1740179110184,0.28431814,644.98,644.2,1.077]
[1740179110379,0.31009194,644.97,644.2,1.077]
[1740179110578,0.28431814,644.96,644.2,1.077]
[1740179110779,0.31010155,644.95,644.2,1.077]
[1740179110983,0.28431814,644.94,644.2,1.077]
[1740179111184,0.31011117,644.93,644.2,1.077]
[1740179111483,0.28431814,644.92,644.2,1.077]
[1740179113084,0.28431814,644.91,644.2,1.077]